fUSD/lending_fUSD_20250630
["ID","MTS","AMOUNT","RATE_DAILY","PERIOD"]
[368675801,1751291811264,-4315.36,0.00013998,2]
[368675802,1751291811307,-490.0,0.00013998,2]
[368675803,1751291811588,-4535.6,0.00013998,2]
[368675804,1751291811870,-928.8,0.00013998,2]
[368675805,1751291811915,-2485.25,0.00013998,2]
[368675806,1751291811959,-495.61,0.00013998,2]
[368675807,1751291812004,-758.55,0.00013998,2]
[368675808,1751291812287,-663.58,0.00013998,2]
[368675809,1751291812332,-490.0,0.00013998,2]
[368675810,1751291812375,-490.0,0.00013998,2]
[368675811,1751291812421,-490.0,0.00013998,2]
[368675812,1751291812469,-505.16,0.00013998,2]
[368675813,1751291812522,-490.0,0.00013998,2]
[368675814,1751291812569,-490.0,0.00013998,2]
[368675815,1751291812938,-480.51564255,0.00013998,2]
[368675816,1751291812982,-490.0,0.00013998,2]
[368675817,1751291813219,-942.24,0.00013998,2]
[368675818,1751291813477,-545.16,0.00013998,2]
[368675819,1751291813523,-490.0,0.00013998,2]
[368675820,1751291813570,-1409.21,0.00013998,2]
[368675821,1751291813617,-1256.07,0.00013998,2]
[368675822,1751291813835,-2400.76,0.00013998,2]
[368675823,1751291813881,-232.55975405,0.00013998,2]
[368675824,1751291813926,-490.0,0.00013998,2]
[368675825,1751291814174,-4686.89,0.00013998,2]
[368675826,1751291814222,-136.22,0.00013998,2]
[368675827,1751291814375,-353.78,0.00013998,2]
[368675828,1751291814420,-2774.47,0.00013998,2]
[368675829,1751291814464,-1205.75,0.00013998,2]
[368675830,1751291814645,-1332.0,0.00013998,2]
[368675831,1751291814691,-3391.5,0.00013998,2]
[368675832,1751291814736,-200.0,0.00013998,2]
[368675833,1751291815630,-669.24,0.00013997,2]
[368675834,1751291815676,-490.0,0.00013998,2]
[368675835,1751291815725,-541.08,0.00013998,2]
[368675836,1751291816015,-3400.64,0.00013998,2]
[368675837,1751291816260,-3198.72,0.00013998,2]
[368675838,1751291816311,-1460.39,0.00013998,2]
[368675839,1751291816942,-3136.66,0.00013998,2]
[368675840,1751291816990,-1011.44,0.00013998,2]
[368675841,1751291817036,-490.0,0.00013998,2]
[368675842,1751291817083,-233.8,0.00013998,2]
[368675843,1751291817238,-256.2,0.00013998,2]
[368675844,1751291817288,-490.0,0.00013998,2]
[368675845,1751291817335,-2240.28,0.00013998,2]
[368675846,1751291817381,-500.0,0.00013998,2]
[368675847,1751291817431,-329.09952194,0.00013998,2]
[368675848,1751291817477,-413.8029589,0.00013998,2]
[368675849,1751291817525,-500.0,0.00013998,2]
[368675850,1751291817571,-188.97296747,0.00013998,2]
[368675851,1751291817714,-260.0,0.00013998,2]
[368675852,1751291817760,-490.0,0.00013998,2]
[368675853,1751291817811,-1475.82,0.00013998,2]
[368675854,1751291818710,-728.67,0.00013997,2]
[368675855,1751291819306,-4111.78,0.00013997,2]
[368675856,1751291822173,-490.0,0.00013997,2]
[368675857,1751291823397,-3813.75835175,0.00013998,2]
[368675858,1751291823444,-490.0,0.00013998,2]
[368675859,1751291823794,-353.78,0.00013998,2]
[368675860,1751291823893,-2774.47,0.00013998,2]
[368675861,1751291823977,-2537.75,0.00013998,2]
[368675862,1751291824106,-1332.0,0.00013998,2]
[368675863,1751291824170,-3391.5,0.00013998,2]
[368675864,1751291824228,-200.0,0.00013998,2]
[368675865,1751291824283,-153.0,0.00013998,2]
[368675866,1751291824651,-669.24,0.00013998,2]
[368675867,1751291824690,-490.0,0.00013998,2]
[368675868,1751291824728,-1379.77164825,0.00013998,2]
[368675869,1751291824738,-253.29240475,0.00013998,2]
[368675870,1751291824747,-4320.88,0.00013998,2]
[368675871,1751291824757,-1186.495947,0.00013998,2]
[368675872,1751291825238,-134.504053,0.00013998,2]
[368675873,1751291825248,-490.0,0.00013998,2]
[368675874,1751291825258,-490.0,0.00013998,2]
[368675875,1751291825267,-490.0,0.00013998,2]
[368675876,1751291825276,-490.0,0.00013998,2]
[368675877,1751291825286,-900.84,0.00013998,2]
[368675878,1751291825295,-490.0,0.00013998,2]
[368675879,1751291825304,-490.0,0.00013998,2]
[368675880,1751291825314,-2624.015947,0.00013998,2]
[368675881,1751291825410,-3198.72,0.00013998,2]
[368675882,1751291825448,-885.824053,0.00013998,2]
[368675883,1751291825458,-490.0,0.00013998,2]
[368675884,1751291825468,-84.565947,0.00013998,2]
[368675885,1751291825499,-405.434053,0.00013998,2]
[368675886,1751291825508,-276.345947,0.00013998,2]
[368675887,1751291825611,-213.654053,0.00013998,2]
[368675888,1751291825622,-340.0,0.00013998,2]
[368675889,1751291825631,-2091.3,0.00013998,2]
[368675890,1751291825640,-491.705947,0.00013998,2]
[368675891,1751291825683,-768.874053,0.00013998,2]
[368675892,1751291825692,-242.565947,0.00013998,2]
[368675893,1751291825728,-247.434053,0.00013998,2]
[368675894,1751291825737,-242.565947,0.00013998,2]
[368675895,1751291825766,-490.0,0.00013998,2]
[368675896,1751291825809,-256.2,0.00013998,2]
[368675897,1751291825843,-490.0,0.00013998,2]
[368675898,1751291825872,-2240.28,0.00013998,2]
[368675899,1751291825902,-119.084053,0.00013998,2]
[368675900,1751291825912,-380.915947,0.00013998,2]
[368675901,1751291825954,-329.09952194,0.00013998,2]
[368675902,1751291825984,-109.74453106,0.00013998,2]
[368675903,1751291825994,-304.05842784,0.00013998,2]
[368675904,1751291826025,-185.94157216,0.00013998,2]
[368675905,1751291826034,-314.05842784,0.00013998,2]
[368675906,1751291826084,-175.94157216,0.00013998,2]
[368675907,1751291826094,-13.03139531,0.00013998,2]
[368675908,1751291826131,-163.28910338,0.00013998,2]
[368675909,1751291826178,-260.0,0.00013998,2]
[368675910,1751291826210,-53.67950131,0.00013998,2]
[368675911,1751291826220,-436.32049869,0.00013998,2]
[368675912,1751291826262,-879.28950131,0.00013998,2]
[368675913,1751291826271,-596.53049869,0.00013998,2]
[368675914,1751291826306,-749.49950131,0.00013998,2]
[368675915,1751291826316,-884.2,0.00013998,2]
[368675916,1751291826326,-1481.79,0.00013998,2]
[368675917,1751291826336,-490.0,0.00013998,2]
[368675918,1751291826345,-1482.49,0.00013998,2]
[368675919,1751291826354,-460.38049869,0.00013998,2]
[368675920,1751291826455,-44.94950131,0.00013998,2]
[368675921,1751291826464,-4509.88,0.00013998,2]
[368675922,1751291826476,-490.0,0.00013998,2]
[368675923,1751291826486,-500.0,0.00013998,2]
[368675924,1751291826495,-159.41,0.00013998,2]
[368675925,1751291826505,-1116.86,0.00013998,2]
[368675926,1751291826514,-3178.90049869,0.00013998,2]
[368675927,1751291826569,-829.08,0.00013997,2]
[368675928,1751291826578,-3241.56950131,0.00013998,2]
[368675929,1751291826587,-5784.89,0.00013998,2]
[368675930,1751291826596,-144.46049869,0.00013998,2]
[368675931,1751291826630,-345.53950131,0.00013998,2]
[368675932,1751291826640,-490.0,0.00013998,2]
[368675933,1751291826650,-490.0,0.00013998,2]
[368675934,1751291826659,-490.0,0.00013998,2]
[368675935,1751291826668,-490.0,0.00013998,2]
[368675936,1751291826678,-7694.46049869,0.00013998,2]
[368675937,1751291826716,-409.42950131,0.00013998,2]
[368675938,1751291826725,-1393.38,0.00013998,2]
[368675939,1751291826736,-490.0,0.00013998,2]
[368675940,1751291826746,-771.39,0.00013998,2]
[368675941,1751291826756,-490.0,0.00013998,2]
[368675942,1751291826765,-490.0,0.00013998,2]
[368675943,1751291826775,-3393.25,0.00013998,2]
[368675944,1751291826784,-490.0,0.00013998,2]
[368675945,1751291826793,-1167.75,0.00013998,2]
[368675946,1751291826803,-490.0,0.00013998,2]
[368675947,1751291826813,-414.80049869,0.00013998,2]
[368675948,1751291826847,-75.19950131,0.00013998,2]
[368675949,1751291826857,-653.47049869,0.00013998,2]
[368675950,1751291826981,-1181.97950131,0.00013998,2]
[368675951,1751291826991,-490.0,0.00013998,2]
[368675952,1751291827001,-5652.49,0.00013998,2]
[368675953,1751291827011,-507.2193803,0.00013998,2]
[368675954,1751291827020,-500.0,0.00013998,2]
[368675955,1751291827029,-210.97111839,0.00013998,2]
[368675956,1751291827170,-289.02888161,0.00013998,2]
[368675957,1751291827180,-199.50291755,0.00013998,2]
[368675958,1751291827190,-1301.68,0.00013998,2]
[368675959,1751291827200,-490.0,0.00013998,2]
[368675960,1751291827210,-500.0,0.00013998,2]
[368675961,1751291827220,-500.0,0.00013998,2]
[368675962,1751291827230,-6719.78820084,0.00013998,2]
[368675963,1751291827316,-7932.04179916,0.00013998,2]
[368675964,1751291827326,-490.0,0.00013998,2]
[368675965,1751291827336,-1577.95820084,0.00013998,2]
[368675966,1751291827369,-515.52179916,0.00013998,2]
[368675967,1751291827379,-490.0,0.00013998,2]
[368675968,1751291827388,-1722.82,0.00013998,2]
[368675969,1751291827398,-1383.43820084,0.00013998,2]
[368675970,1751291827443,-784.64179916,0.00013998,2]
[368675971,1751291827452,-490.0,0.00013998,2]
[368675972,1751291827462,-501.79820084,0.00013998,2]
[368675973,1751291827500,-1256.91179916,0.00013998,2]
[368675974,1751291827510,-1587.68,0.00013998,2]
[368675975,1751291827519,-1191.2,0.00013998,2]
[368675976,1751291827528,-2530.95,0.00013998,2]
[368675977,1751291827538,-1433.46,0.00013998,2]
[368675978,1751291827547,-669.31829957,0.00013998,2]
[368675979,1751291827556,-1330.47990127,0.00013998,2]
[368675980,1751291827591,-10000.0,0.00013998,2]
[368675981,1751291827647,-10000.0,0.00013998,2]
[368675982,1751291827691,-10000.0,0.00013998,2]
[368675983,1751291827723,-10000.0,0.00013998,2]
[368675984,1751291827768,-10000.0,0.00013998,2]
[368675985,1751291827979,-163.941398,0.00013853,2]
[368675986,1751291827989,-9836.058602,0.00013998,2]
[368675987,1751291828021,-7592.12149673,0.00013998,2]
[368675988,1751291828031,-2407.87850327,0.00013999,2]
[368675989,1751291828168,-823.17,0.00013997,2]
[368675990,1751291828178,-9176.83,0.00013999,2]
[368675991,1751291828596,-300.0,0.00013996,2]
[368675992,1751291828607,-190.0,0.00013999,2]
[368675993,1751291828683,-9020.0,0.00013999,2]
[368675994,1751291828734,-10000.0,0.00013999,2]
[368675995,1751291828771,-10000.0,0.00013999,2]
[368675996,1751291828912,-10000.0,0.00013999,2]
[368675997,1751291831293,-410.75189121,0.00013176,2]
[368675998,1751291833949,-256.08343801,0.00013176,2]
[368675999,1751291835469,-153.28296803,0.00013176,2]
[368676000,1751291837014,-179.88170275,0.00013176,2]
[368676001,1751291850334,285.0,0.00011227,3]
[368676002,1751291905486,-163.941398,0.00013826,2]
[368676003,1751291905534,-942.185309,0.00013919,2]
[368676004,1751291905588,-300.0,0.00013988,2]
[368676005,1751291905847,-7187.746586,0.00013989,2]
[368676006,1751291905910,-1791.4105542,0.00013989,2]
[368676007,1751291905958,-207.4,0.00013989,2]
[368676008,1751291906008,-395.44554137,0.00013989,2]
[368676009,1751291906055,-224.498767,0.00013992,2]
[368676010,1751291906100,-490.0,0.00013996,2]
[368676011,1751291906145,-490.0,0.00013996,2]
[368676012,1751291906194,-490.0,0.00013996,2]
[368676013,1751291906242,-490.0,0.00013996,2]
[368676014,1751291906366,-4078.98,0.00013997,2]
[368676015,1751291906412,-824.54,0.00013997,2]
[368676016,1751291906724,-490.0,0.00013997,2]
[368676017,1751291906770,-661.48,0.00013997,2]
[368676018,1751291906814,-490.0,0.00013997,2]
[368676019,1751291906857,-490.0,0.00013997,2]
[368676020,1751291906900,-970.98,0.00013997,2]
[368676021,1751291906941,-490.0,0.00013997,2]
[368676022,1751291906982,-335.80640908,0.00013997,2]
[368676023,1751291908007,-4862.18,0.00013997,2]
[368676024,1751291908214,-275.64,0.00013997,2]
[368676025,1751291908260,-490.0,0.00013997,2]
[368676026,1751291908302,-589.39,0.00013997,2]
[368676027,1751291908345,-1450.96,0.00013997,2]
[368676028,1751291908389,-1977.6,0.00013997,2]
[368676029,1751291908872,-2485.68,0.00013997,2]
[368676030,1751291908921,-1513.49,0.00013997,2]
[368676031,1751291909356,-2559.45,0.00013997,2]
[368676032,1751291909398,-729.78,0.00013997,2]
[368676033,1751291909527,-4763.28,0.00013997,2]
[368676034,1751291909619,-473.44,0.00013997,2]
[368676035,1751291909662,-810.58,0.00013997,2]
[368676036,1751291909705,-935.47,0.00013997,2]
[368676037,1751291909748,-1221.19,0.00013997,2]
[368676038,1751291909793,-1015.63,0.00013997,2]
[368676039,1751291909878,-1732.13,0.00013997,2]
[368676040,1751291909925,-2916.68,0.00013997,2]
[368676041,1751291910014,-702.38,0.00013997,2]
[368676042,1751291910056,-823.3,0.00013997,2]
[368676043,1751291910099,-1548.7,0.00013997,2]
[368676044,1751291910142,-1362.87,0.00013997,2]
[368676045,1751291910184,-490.0,0.00013997,2]
[368676046,1751291910373,-2349.0,0.00013997,2]
[368676047,1751291910415,-490.0,0.00013997,2]
[368676048,1751291910458,-1501.51,0.00013997,2]
[368676049,1751291910619,-1744.56,0.00013997,2]
[368676050,1751291910661,-1322.75,0.00013997,2]
[368676051,1751291910702,-1466.9,0.00013998,2]
[368676052,1751291910876,-931.58,0.00013998,2]
[368676053,1751291910921,-490.0,0.00013998,2]
[368676054,1751291910966,-490.0,0.00013998,2]
[368676055,1751291911013,-990.61,0.00013998,2]
[368676056,1751291911057,-1734.29,0.00013998,2]
[368676057,1751291911326,-727.04,0.00013998,2]
[368676058,1751291911369,-490.0,0.00013998,2]
[368676059,1751291911409,-2019.95,0.00013998,2]
[368676060,1751291911449,-1461.23,0.00013998,2]
[368676061,1751291911491,-113.56,0.00013998,2]
[368676062,1751291911592,-933.94,0.00013997,2]
[368676063,1751291911636,-376.44,0.00013998,2]
[368676064,1751291911678,-629.14,0.00013998,2]
[368676065,1751291912021,-3245.97,0.00013998,2]
[368676066,1751291912338,-3508.06,0.00013998,2]
[368676067,1751291912381,-490.0,0.00013998,2]
[368676068,1751291914746,-718.4874567,0.00013998,2]
[368676069,1751291914961,-727.04,0.00013998,2]
[368676070,1751291915022,-490.0,0.00013998,2]
[368676071,1751291915075,-2019.95,0.00013998,2]
[368676072,1751291915119,-1461.23,0.00013998,2]
[368676073,1751291915155,-490.0,0.00013998,2]
[368676074,1751291915204,-933.94,0.00013998,2]
[368676075,1751291915250,-376.44,0.00013998,2]
[368676076,1751291915311,-629.14,0.00013998,2]
[368676077,1751291915352,-179.7835731,0.00013898,2]
[368676078,1751291915364,-5941.1764269,0.00013998,2]
[368676079,1751291915604,-6754.03,0.00013998,2]
[368676080,1751291915813,-3508.06,0.00013998,2]
[368676081,1751291916035,-490.0,0.00013998,2]
[368676082,1751291916129,-973.7238836,0.00013998,2]
[368676083,1751291916173,-1030.1561164,0.00013998,2]
[368676084,1751291916216,-7022.3961164,0.00013998,2]
[368676085,1751291916226,-697.92,0.00013998,2]
[368676086,1751291916237,-1848.71,0.00013998,2]
[368676087,1751291916251,-430.9738836,0.00013998,2]
[368676088,1751291916312,-59.0261164,0.00013998,2]
[368676089,1751291917185,-1529.45,0.00013998,2]
[368676090,1751291917279,-1220.27,0.00013998,2]
[368676091,1751291917324,-490.0,0.00013998,2]
[368676092,1751291917366,-1305.7777672,0.00013998,2]
[368676093,1751291917461,-954.62,0.00013997,2]
[368676094,1751291917471,-790.9522328,0.00013998,2]
[368676095,1751291917480,-3649.9038836,0.00013998,2]
[368676096,1751291917559,-10000.0,0.00013998,2]
[368676097,1751291917617,-10000.0,0.00013998,2]
[368676098,1751291918240,-956.07,0.00013997,2]
[368676099,1751291918250,-1574.8661164,0.00013998,2]
[368676100,1751291918259,-7469.0638836,0.00013998,2]
[368676101,1751291918338,-1746.3461164,0.00013998,2]
[368676102,1751291918378,-490.0,0.00013998,2]
[368676103,1751291918419,-1559.42,0.00013998,2]
[368676104,1751291918459,-1143.95,0.00013998,2]
[368676105,1751291918640,-490.0,0.00013998,2]
[368676106,1751291918649,-490.0,0.00013998,2]
[368676107,1751291918659,-441.74918727,0.00013998,2]
[368676108,1751291918668,-490.0,0.00013998,2]
[368676109,1751291918678,-3148.53469633,0.00013998,2]
[368676110,1751291918742,-1194.08530367,0.00013998,2]
[368676111,1751291918866,-8805.91469633,0.00013998,2]
[368676112,1751291918910,-10000.0,0.00013998,2]
[368676113,1751291918964,-10000.0,0.00013998,2]
[368676114,1751291919037,-10000.0,0.00013998,2]
[368676115,1751291919092,-10000.0,0.00013998,2]
[368676116,1751291919182,-10000.0,0.00013998,2]
[368676117,1751291919223,-10000.0,0.00013998,2]
[368676118,1751291919326,-10000.0,0.00013998,2]
[368676119,1751291919417,-10000.0,0.00013998,2]
[368676120,1751291919479,-9026.2761164,0.00013998,2]
[368676121,1751291919616,-59.0261164,0.00013899,2]
[368676122,1751291919646,-186.01403935,0.00013899,2]
[368676123,1751291919655,-1343.43596065,0.00013998,2]
[368676124,1751291919787,-1220.27,0.00013997,2]
[368676125,1751291919835,-490.0,0.00013997,2]
[368676126,1751291919866,-355.32,0.00013997,2]
[368676127,1751291919876,-1741.41,0.00013998,2]
[368676128,1751291919931,-10000.0,0.00013998,2]
[368676129,1751291919992,-10000.0,0.00013998,2]
[368676130,1751291920023,-7224.14322662,0.00013998,2]
[368676131,1751291920033,-2284.57,0.00013998,2]
[368676132,1751291920042,-490.0,0.00013998,2]
[368676133,1751291920051,-1.28677338,0.00013998,2]
[368676134,1751291920101,-440.88258261,0.00013998,2]
[368676135,1751291920144,-490.0,0.00013998,2]
[368676136,1751291920188,-1481.62,0.00013998,2]
[368676137,1751291920232,-2135.59,0.00013998,2]
[368676138,1751291920277,-284.25625909,0.00013998,2]
[368676139,1751291920439,-179.78357308,0.00013959,2]
[368676140,1751291920480,-335.3023166,0.00013998,2]
[368676141,1751291920521,-490.0,0.00013998,2]
[368676142,1751291920564,-490.0,0.00013998,2]
[368676143,1751291920606,-2584.01,0.00013998,2]
[368676144,1751291920782,-2523.27,0.00013998,2]
[368676145,1751291920827,-698.74,0.00013998,2]
[368676146,1751291920870,-490.0,0.00013998,2]
[368676147,1751291920914,-490.0,0.00013998,2]
[368676148,1751291921070,-946.47,0.00013997,2]
[368676149,1751291921116,-942.88,0.00013998,2]
[368676150,1751291921292,-3778.7,0.00013998,2]
[368676151,1751291921499,-2442.6,0.00013998,2]
[368676152,1751291921551,-2341.53,0.00013998,2]
[368676153,1751291921627,-659.42,0.00013998,2]
[368676154,1751291921670,-490.0,0.00013998,2]
[368676155,1751291921715,-921.69,0.00013998,2]
[368676156,1751291921764,-2598.19,0.00013998,2]
[368676157,1751291922101,-661.4,0.00013998,2]
[368676158,1751291922144,-490.0,0.00013998,2]
[368676159,1751291922186,-514.74799721,0.00013998,2]
[368676160,1751291922229,-2514.03,0.00013998,2]
[368676161,1751291922272,-531.16400558,0.00013998,2]
[368676162,1751291922379,-577.31599442,0.00013998,2]
[368676163,1751291922389,-342.60585134,0.00013998,2]
[368676164,1751291922428,-2108.20414866,0.00013998,2]
[368676165,1751291922437,-490.0,0.00013998,2]
[368676166,1751291922447,-712.66,0.00013998,2]
[368676167,1751291922456,-1943.76,0.00013998,2]
[368676168,1751291922466,-2117.13,0.00013998,2]
[368676169,1751291922476,-651.13,0.00013998,2]
[368676170,1751291922486,-1977.11585134,0.00013998,2]
[368676171,1751291922536,-10000.0,0.00013998,2]
[368676172,1751291922566,-10000.0,0.00013998,2]
[368676173,1751291922906,-10000.0,0.00013998,2]
[368676174,1751291922967,-440.88258261,0.00013998,2]
[368676175,1751291923003,-186.30741739,0.00013998,2]
[368676176,1751291923013,-303.69258261,0.00013998,2]
[368676177,1751291923045,-1481.62,0.00013998,2]
[368676178,1751291923080,-2135.59,0.00013998,2]
[368676179,1751291923121,-619.55857569,0.00013998,2]
[368676180,1751291923261,-179.78357308,0.00013998,2]
[368676181,1751291923295,-335.3023166,0.00013998,2]
[368676182,1751291923328,-490.0,0.00013998,2]
[368676183,1751291923367,-490.0,0.00013998,2]
[368676184,1751291923398,-2584.01,0.00013998,2]
[368676185,1751291923434,-661.06753288,0.00013998,2]
[368676186,1751291923443,-490.0,0.00013999,2]
[368676187,1751291923453,-490.0,0.00013999,2]
[368676188,1751291923463,-200.74068776,0.00013999,2]
[368676189,1751291923611,-289.25931224,0.00013999,2]
[368676190,1751291923621,-490.0,0.00013999,2]
[368676191,1751291923631,-977.15,0.00013999,2]
[368676192,1751291923640,-490.0,0.00013999,2]
[368676193,1751291923649,-276.86068776,0.00013999,2]
[368676194,1751291923688,-213.13931224,0.00013999,2]
[368676195,1751291923697,-485.60068776,0.00013999,2]
[368676196,1751291923735,-4.39931224,0.00013999,2]
[368676197,1751291923745,-485.60068776,0.00013999,2]
[368676198,1751291923777,-4.39931224,0.00013999,2]
[368676199,1751291923786,-485.60068776,0.00013999,2]
[368676200,1751291923817,-4.39931224,0.00013999,2]
[368676201,1751291923827,-490.0,0.00013999,2]
[368676202,1751291923836,-859.95,0.00013999,2]
[368676203,1751291923846,-241.63068776,0.00013999,2]
[368676204,1751291923891,-259.19931224,0.00013999,2]
[368676205,1751291923902,-490.0,0.00013999,2]
[368676206,1751291923911,-197.27068776,0.00013999,2]
[368676207,1751291924146,-292.72931224,0.00013999,2]
[368676208,1751291924157,-1000.0,0.00013999,2]
[368676209,1751291924166,-1000.0,0.00013999,2]
[368676210,1751291924178,-490.0,0.00013999,2]
[368676211,1751291924188,-490.0,0.00013999,2]
[368676212,1751291924198,-490.0,0.00013999,2]
[368676213,1751291924208,-430.03252306,0.00013999,2]
[368676214,1751291924218,-490.0,0.00013999,2]
[368676215,1751291924227,-490.0,0.00013999,2]
[368676216,1751291924237,-770.88,0.00013999,2]
[368676217,1751291924248,-490.0,0.00013999,2]
[368676218,1751291924258,-507.07,0.00013999,2]
[368676219,1751291924267,-223.4681647,0.00013999,2]
[368676220,1751291924310,-245.04015567,0.0001396,2]
[368676221,1751291924319,-266.5318353,0.00013999,2]
[368676222,1751291924328,-609.63,0.00013999,2]
[368676223,1751291924337,-309.97203864,0.00013999,2]
[368676224,1751291924346,-490.0,0.00013999,2]
[368676225,1751291924356,-1237.61,0.00013999,2]
[368676226,1751291924365,-490.0,0.00013999,2]
[368676227,1751291924375,-490.0,0.00013999,2]
[368676228,1751291924384,-490.0,0.00013999,2]
[368676229,1751291924393,-490.0,0.00013999,2]
[368676230,1751291924402,-441.30545264,0.00013999,2]
[368676231,1751291924411,-490.0,0.00013999,2]
[368676232,1751291924420,-171.21051775,0.00013999,2]
[368676233,1751291924471,-645.69948225,0.00013999,2]
[368676234,1751291924480,-612.56,0.00013999,2]
[368676235,1751291924490,-490.0,0.00013999,2]
[368676236,1751291924503,-490.0,0.00013999,2]
[368676237,1751291924513,-204.34051775,0.00013999,2]
[368676238,1751291924543,-285.65948225,0.00013999,2]
[368676239,1751291924552,-490.0,0.00013999,2]
[368676240,1751291924561,-490.0,0.00013999,2]
[368676241,1751291924571,-531.17,0.00013999,2]
[368676242,1751291924581,-544.70051775,0.00013999,2]
[368676243,1751291924628,-431.74,0.00013999,2]
[368676244,1751291924664,-479.54948225,0.00013999,2]
[368676245,1751291924675,-179.87051775,0.00013999,2]
[368676246,1751291924703,-490.0,0.00013999,2]
[368676247,1751291924738,-111.23948225,0.00013999,2]
[368676248,1751291924747,-490.0,0.00013999,2]
[368676249,1751291924757,-320.45051775,0.00013999,2]
[368676250,1751291924787,-169.54948225,0.00013999,2]
[368676251,1751291924796,-490.0,0.00013999,2]
[368676252,1751291924806,-490.0,0.00013999,2]
[368676253,1751291924816,-490.0,0.00013999,2]
[368676254,1751291924826,-337.00066572,0.00013999,2]
[368676255,1751291924836,-976.5,0.00013999,2]
[368676256,1751291924846,-306.53985203,0.00013999,2]
[368676257,1751291924909,-209.93014797,0.00013999,2]
[368676258,1751291924919,-451.46985203,0.00013999,2]
[368676259,1751291924950,-423.38014797,0.00013999,2]
[368676260,1751291924960,-66.61985203,0.00013999,2]
[368676261,1751291924991,-423.38014797,0.00013999,2]
[368676262,1751291925002,-91.36784924,0.00013999,2]
[368676263,1751291925038,-398.63215076,0.00013999,2]
[368676264,1751291925048,-490.0,0.00013999,2]
[368676265,1751291925058,-490.0,0.00013999,2]
[368676266,1751291925068,-490.0,0.00013999,2]
[368676267,1751291925079,-490.0,0.00013999,2]
[368676268,1751291925089,-155.39784924,0.00013999,2]
[368676269,1751291925121,-334.60215076,0.00013999,2]
[368676270,1751291925131,-490.0,0.00013999,2]
[368676271,1751291925146,-283.87784924,0.00013999,2]
[368676272,1751291925213,-206.12215176,0.00013999,2]
[368676273,1751291925223,-660.71,0.00013999,2]
[368676274,1751291925235,-810.47,0.00013999,2]
[368676275,1751291925245,-490.0,0.00013999,2]
[368676276,1751291925257,-536.63,0.00013999,2]
[368676277,1751291925269,-523.61,0.00013999,2]
[368676278,1751291925279,-490.0,0.00013999,2]
[368676279,1751291925289,-701.36,0.00013999,2]
[368676280,1751291925299,-490.0,0.00013999,2]
[368676281,1751291925310,-490.0,0.00013999,2]
[368676282,1751291925320,-490.0,0.00013999,2]
[368676283,1751291925330,-490.0,0.00013999,2]
[368676284,1751291925340,-490.0,0.00013999,2]
[368676285,1751291925351,-582.73,0.00013999,2]
[368676286,1751291925361,-490.0,0.00013999,2]
[368676287,1751291925371,-490.0,0.00013999,2]
[368676288,1751291925381,-627.75,0.00013999,2]
[368676289,1751291925391,-490.0,0.00013999,2]
[368676290,1751291925402,-450.61784824,0.00013999,2]
[368676291,1751291925450,-39.38215176,0.00013999,2]
[368676292,1751291925460,-553.09,0.00013999,2]
[368676293,1751291925470,-490.0,0.00013999,2]
[368676294,1751291925480,-490.0,0.00013999,2]
[368676295,1751291925490,-493.22757398,0.00013999,2]
[368676296,1751291925500,-490.0,0.00013999,2]
[368676297,1751291925510,-490.0,0.00013999,2]
[368676298,1751291925520,-490.0,0.00013999,2]
[368676299,1751291925531,-490.0,0.00013999,2]
[368676300,1751291925542,-490.0,0.00013999,2]